fUST/lending_fUST_20240711
["ID","MTS","AMOUNT","RATE_DAILY","PERIOD"]
[331681399,1720632640399,-500.0,0.00032876,7]
[331681400,1720632640408,-500.0,0.00032876,7]
[331681401,1720632640417,-510.76347615,0.00032876,7]
[331681402,1720632640427,-446.45355739,0.00032876,7]
[331681403,1720632640436,-500.0,0.00032876,7]
[331681404,1720632640447,-500.0,0.00032876,7]
[331681405,1720632640457,-151.0,0.00032876,7]
[331681406,1720632640466,-508.03266137,0.00032876,7]
[331681407,1720632640476,-503.56758103,0.00032876,7]
[331681408,1720632640485,-151.0,0.00032876,7]
[331681409,1720632640495,-504.59237661,0.00032876,7]
[331681410,1720632640505,-2138.411571,0.00032876,7]
[331681411,1720632640515,-506.45487658,0.00032876,18]
[331681412,1720632640524,-525.6161976,0.00032876,7]
[331681413,1720632640534,-373.74386389,0.00032876,7]
[331681414,1720632640544,-500.0,0.00032876,7]
[331681415,1720632640553,-500.0,0.00032876,7]
[331681416,1720632640563,-151.0,0.00032876,7]
[331681417,1720632640573,-500.0,0.00032876,7]
[331681418,1720632640582,-500.0,0.00032876,7]
[331681419,1720632640591,-500.0,0.00032876,7]
[331681420,1720632640600,-511.40716072,0.00032876,7]
[331681421,1720632640609,-151.0,0.00032876,7]
[331681422,1720632640619,-473.38967444,0.00032876,7]
[331681423,1720632640630,-505.02365654,0.00032876,7]
[331681424,1720632640641,-500.0,0.00032876,7]
[331681425,1720632640651,-511.60434271,0.00032876,7]
[331681426,1720632640661,-500.0,0.00032876,7]
[331681427,1720632640671,-500.0,0.00032876,7]
[331681428,1720632640680,-500.0,0.00032876,7]
[331681429,1720632640690,-215.46,0.00032876,7]
[331681430,1720632640701,-500.0,0.00032876,7]
[331681431,1720632640710,-4004.03,0.00032876,7]
[331681432,1720632640719,-151.0,0.00032876,7]
[331681433,1720632640728,-314.9685,0.00032876,7]
[331681434,1720632640738,-151.0,0.00032876,7]
[331681435,1720632640748,-337.696883,0.00032876,7]
[331681436,1720632640761,-500.0,0.00032876,7]
[331681437,1720632640772,-151.0,0.00032876,7]
[331681438,1720632640781,-509.66054696,0.00032876,7]
[331681439,1720632640791,-337.696883,0.00032876,7]
[331681440,1720632640800,-151.438995,0.00032876,7]
[331681441,1720632640809,-314.9685,0.00032876,7]
[331681442,1720632640819,-505.06475904,0.00032876,7]
[331681443,1720632640828,-151.0,0.00032876,7]
[331681444,1720632640837,-503.76980122,0.00032876,7]
[331681445,1720632640847,-2146.61,0.00032876,7]
[331681446,1720632640856,-516.79715429,0.00032876,7]
[331681447,1720632640866,-500.0,0.00032876,7]
[331681448,1720632640875,-656.94,0.00032876,7]
[331681449,1720632640885,-1846.01,0.00032876,2]
[331681450,1720632640895,-1846.01,0.00032876,2]
[331681451,1720632640905,-1846.01,0.00032876,2]
[331681452,1720632640915,-1846.01,0.00032876,2]
[331681453,1720632640924,-1846.01,0.00032876,2]
[331681454,1720632640934,-1846.01,0.00032876,2]
[331681455,1720632640943,-1846.01,0.00032876,2]
[331681456,1720632640957,-1846.01,0.00032876,2]
[331681457,1720632640967,-1846.01,0.00032876,2]
[331681458,1720632640976,-1846.01,0.00032876,2]
[331681459,1720632640989,-1846.01,0.00032876,2]
[331681460,1720632640998,-1846.01,0.00032876,2]
[331681461,1720632641008,-1846.01,0.00032876,2]
[331681462,1720632641018,-500.0,0.00032876,7]
[331681463,1720632641027,-1846.01,0.00032876,2]
[331681464,1720632641037,-1846.01,0.00032876,2]
[331681465,1720632641047,-1846.01,0.00032876,2]
[331681466,1720632641056,-1846.01,0.00032876,2]
[331681467,1720632641066,-1846.01,0.00032876,2]
[331681468,1720632641075,-1846.01,0.00032876,2]
[331681469,1720632641084,-1846.01,0.00032876,2]
[331681470,1720632641094,-1846.01,0.00032876,2]
[331681471,1720632641104,-1846.01,0.00032876,2]
[331681472,1720632641114,-500.0,0.00032876,7]
[331681473,1720632641124,-1846.01,0.00032876,2]
[331681474,1720632641134,-655.71,0.00032876,7]
[331681475,1720632641143,-1846.18481392,0.00032876,2]
[331681476,1720632641154,-276.3927466,0.00032876,7]
[331681477,1720632641163,-500.0,0.00032876,7]
[331681478,1720632641172,-436.954309,0.00032876,7]
[331681479,1720632641182,-500.0,0.00032876,7]
[331681480,1720632641192,-500.0,0.00032876,7]
[331681481,1720632641203,-500.0,0.00032876,7]
[331681482,1720632641213,-155.42735479,0.00032876,7]
[331681483,1720632641223,-436.954309,0.00032876,7]
[331681484,1720632641232,-500.0,0.00032876,7]
[331681485,1720632641242,-225.16732668,0.00032876,7]
[331681486,1720632641252,-500.0,0.00032876,7]
[331681487,1720632641262,-504.94315929,0.00032876,7]
[331681488,1720632641271,-500.0,0.00032876,7]
[331681489,1720632641281,-500.0,0.00032876,7]
[331681490,1720632641291,-536.9,0.00032876,7]
[331681491,1720632641300,-500.0,0.00032876,7]
[331681492,1720632641310,-1939.924213,0.00032876,7]
[331681493,1720632641320,-500.0,0.00032876,2]
[331681494,1720632641329,-1939.924213,0.00032876,7]
[331681495,1720632641339,-500.0,0.00032876,7]
[331681496,1720632641350,-222.99106709,0.00032876,7]
[331681497,1720632641360,-500.0,0.00032876,7]
[331681498,1720632641369,-500.0,0.00032876,7]
[331681499,1720632641378,-500.0,0.00032876,7]
[331681500,1720632641388,-500.0,0.00032876,7]
[331681501,1720632641397,-396.90271777,0.00032876,7]
[331681502,1720632641406,-500.0,0.00032876,7]
[331681503,1720632641416,-500.0,0.00032876,7]
[331681504,1720632641425,-506.08824838,0.00032876,7]
[331681505,1720632641434,-500.0,0.00032876,7]
[331681506,1720632641444,-1940.97,0.00032876,7]
[331681507,1720632641456,-500.0,0.00032876,7]
[331681508,1720632641466,-3472.78,0.00032876,7]
[331681509,1720632641476,-789.03,0.00032876,7]
[331681510,1720632641486,-500.0,0.00032876,7]
[331681511,1720632641495,-500.0,0.00032876,7]
[331681512,1720632641505,-500.0,0.00032876,7]
[331681513,1720632641514,-911.3,0.00032876,7]
[331681514,1720632641524,-815.68,0.00032876,7]
[331681515,1720632641532,-521.77382738,0.00032876,7]
[331681516,1720632641541,-190.54055537,0.00032876,7]
[331681517,1720632641551,-10162.39,0.00032876,7]
[331681518,1720632641560,-470.44082281,0.00032876,7]
[331681519,1720632641569,-500.0,0.00032876,7]
[331681520,1720632641579,-641.75,0.00032876,7]
[331681521,1720632641588,-636.83771669,0.00032876,7]
[331681522,1720632641597,-501.61520268,0.00032876,7]
[331681523,1720632641606,-679.38,0.00032876,7]
[331681524,1720632641615,-500.0,0.00032876,7]
[331681525,1720632641626,-500.0,0.00032876,7]
[331681526,1720632641636,-1288.18,0.00032876,7]
[331681527,1720632641646,-223.40288364,0.00032876,7]
[331681528,1720632641656,-762.95,0.00032876,7]
[331681529,1720632641665,-1516.86,0.00032876,7]
[331681530,1720632641674,-1516.86,0.00032876,7]
[331681531,1720632641684,-1516.86,0.00032876,7]
[331681532,1720632641693,-1516.86,0.00032876,7]
[331681533,1720632641708,-1516.86,0.00032876,7]
[331681534,1720632641718,-511.08383652,0.00032876,7]
[331681535,1720632641727,-1516.86,0.00032876,7]
[331681536,1720632641736,-1516.86,0.00032876,7]
[331681537,1720632641746,-1516.86,0.00032876,7]
[331681538,1720632641755,-1516.86,0.00032876,7]
[331681539,1720632641764,-500.0,0.00032876,7]
[331681540,1720632641775,-1516.86,0.00032876,7]
[331681541,1720632641784,-1516.86,0.00032876,7]
[331681542,1720632641794,-1516.86,0.00032876,7]
[331681543,1720632641803,-1516.86,0.00032876,7]
[331681544,1720632641813,-1516.86,0.00032876,7]
[331681545,1720632641822,-500.0,0.00032876,2]
[331681546,1720632641832,-372.87948702,0.00032876,7]
[331681547,1720632641842,-1516.86,0.00032876,7]
[331681548,1720632641852,-1516.86,0.00032876,7]
[331681549,1720632641861,-1516.86,0.00032876,7]
[331681550,1720632641870,-512.39764769,0.00032876,7]
[331681586,1720632643091,-200.97369843,0.00032712,2]
[331681587,1720632643100,-2000.0,0.00032765,2]
[331681588,1720632643110,-4382.58941013,0.00032866,3]
[331681589,1720632643127,-897.71058987,0.00032866,3]
[331681590,1720632643136,-1004.46235231,0.00032876,7]
[331681591,1720632643145,-1092.55459186,0.00032876,7]
[331681641,1720632646039,-424.30540814,0.00032876,7]
[331681642,1720632646050,-75.69459186,0.00032876,7]
[331681667,1720633631126,-231.718866,0.00021096,2]
[331681668,1720633631146,-164.704249,0.00024822,2]
[331681669,1720633631167,-300.0,0.000255,2]
[331681670,1720633631187,-300.0,0.000255,2]
[331681671,1720633631207,-52142.01242753,0.00025501,2]
[331681672,1720633631228,-30000.0,0.00025501,2]
[331681673,1720633631250,-4400.25,0.00025789,3]
[331681674,1720633631270,-3666.87,0.00025789,3]
[331681675,1720633631299,-22622.8583508,0.00025799,2]
[331681676,1720633631322,-7458.94652043,0.0002649,2]
[331681677,1720633631343,-599.14160025,0.00027194,2]
[331681678,1720633631363,-231.718866,0.00027195,2]
[331681679,1720633631383,-4401.0831822,0.00027604,2]
[331681680,1720633631403,-351.78678052,0.00027889,2]
[331681682,1720633631424,-613.71624486,0.00027988,5]
[331681683,1720633631445,-12628.52007566,0.00027989,3]
[331681685,1720633756141,-150.0,0.00025504,2]
[331681686,1720633756163,-156.3,0.00027399,2]
[331681687,1720633756184,-763.93203298,0.00027989,2]
[331681688,1720633756204,-453.80416732,0.000287,2]
[331681689,1720633756224,-2635.05597383,0.000288,2]
[331681690,1720633756244,-252.40548947,0.000289,2]
[331681691,1720633756264,-453.22022894,0.00029,2]
[331681692,1720633756284,-351.78678051,0.00029111,2]
[331681693,1720633756304,-154.55950541,0.00029793,2]
[331681694,1720633759788,466.6642633,0.00027989,2]
[331681695,1720633762106,154.55950541,0.00029772,2]
[331681696,1720633771715,155.43553926,0.00029823,2]
[331681698,1720633784275,301.91698345,0.00027989,2]
[331681699,1720633793956,189.26423783,0.00027989,2]
[331681701,1720633808280,2000.0,0.00029823,2]
[331681702,1720633811377,105.70371347,0.00029823,2]
[331681708,1720633833116,-334.25852236,0.00029823,2]
[331681709,1720633833126,-13871.97030378,0.00029879,2]
[331681711,1720633833266,-5783.3,0.00029879,2]
[331681713,1720633833279,-418.89313081,0.00029879,2]
[331681903,1720633838540,-2000.0,0.00029823,2]
[331681904,1720633838550,-32067.84899294,0.00029879,2]
[331681905,1720633838560,-268.65851187,0.00029901,2]
[331681906,1720633838570,-240.12803383,0.00029903,2]
[331681907,1720633838580,-232.67902139,0.0003,4]
[331681908,1720633838591,-179.33845916,0.0003,4]
[331681909,1720633838601,-151.0,0.00031923,4]
[331681910,1720633838611,-150.0,0.00032051,2]
[331681911,1720633838621,-1406.0,0.00032051,2]
[331681913,1720633838631,-2000.0,0.00032556,2]
[331681914,1720633838643,-1768.36,0.00032646,3]
[331681915,1720633838653,-76379.9987212,0.00032656,4]
[331681916,1720633838663,-88888.0,0.00032666,5]
[331681917,1720633838673,-211.07206833,0.00032679,2]
[331681918,1720633838684,-211.0720683,0.00032703,2]
[331681919,1720633838694,-211.0720683,0.00032728,2]
[331681920,1720633838704,-211.0720683,0.00032752,2]
[331681921,1720633838715,-211.0720683,0.00032776,2]
[331681922,1720633838725,-151.50895514,0.00032779,2]
[331681923,1720633838734,-366.6405652,0.0003285,2]
[331681924,1720633838744,-5292.88975486,0.00032851,2]
[331681925,1720633838754,-151.0,0.00032858,5]
[331681926,1720633838764,-602.39388411,0.00032864,2]
[331681927,1720633838777,-500.0,0.00032864,2]
[331681928,1720633838788,-500.0,0.00032864,2]
[331681929,1720633838800,-500.0,0.00032864,2]
[331681930,1720633838810,-500.0,0.00032864,2]
[331681931,1720633838819,-388.39759235,0.00032864,2]
[331681932,1720633838829,-331.42853988,0.00032864,2]
[331681933,1720633838839,-500.0,0.00032864,2]
[331681934,1720633838849,-500.0,0.00032864,2]
[331681935,1720633838858,-500.0,0.00032864,2]
[331681936,1720633838868,-500.0,0.00032864,2]
[331681937,1720633838877,-500.0,0.00032864,2]
[331681938,1720633838888,-920.57436729,0.00032865,5]
[331681939,1720633838899,-296923.85192514,0.00032866,4]
[331681940,1720633838912,-8596.14295986,0.00032866,4]
[331681941,1720633838922,-160.0,0.00032866,3]
[331681942,1720633838931,-500.0,0.00032875,2]
[331681943,1720633838941,-221.05925318,0.00032875,2]
[331681944,1720633838951,-500.0,0.00032875,2]
[331681945,1720633838960,-222.48794478,0.00032875,2]
[331681946,1720633838970,-376.12801429,0.00032875,2]
[331681947,1720633838980,-500.0,0.00032875,2]
[331681948,1720633838990,-508.45093076,0.00032875,2]
[331681949,1720633839000,-500.0,0.00032875,2]
[331681950,1720633839010,-500.0,0.00032875,2]
[331681951,1720633839020,-500.0,0.00032875,2]
[331681952,1720633839030,-500.0,0.00032875,2]
[331681953,1720633839042,-500.0,0.00032875,2]
[331681954,1720633839053,-500.0,0.00032875,2]
[331681955,1720633839063,-489.91647012,0.00032875,2]
[331681956,1720633839073,-500.0,0.00032875,2]
[331681957,1720633839084,-500.0,0.00032875,2]
[331681958,1720633839093,-500.0,0.00032875,2]
[331681959,1720633839103,-207.71329677,0.00032875,2]
[331681960,1720633839112,-500.0,0.00032875,2]
[331681961,1720633839123,-300.0,0.00032875,2]
[331681962,1720633839133,-500.0,0.00032875,2]
[331681963,1720633839143,-500.0,0.00032875,2]
[331681964,1720633839153,-500.0,0.00032875,2]
[331681965,1720633839164,-297.52678891,0.00032875,2]
[331681966,1720633839174,-498.41541206,0.00032875,2]
[331681967,1720633839184,-296.91290121,0.00032875,2]
[331681968,1720633839194,-5611.49557264,0.00032876,4]
[331681969,1720633839205,-284.6000077,0.00032876,3]
[331681970,1720633839214,-500.0,0.00032876,7]
[331681971,1720633839224,-500.0,0.00032876,7]
[331681972,1720633839233,-500.0,0.00032876,7]
[331681973,1720633839243,-500.0,0.00032876,7]
[331681974,1720633839252,-500.0,0.00032876,7]
[331681975,1720633839263,-500.0,0.00032876,7]
[331681976,1720633839273,-658.63,0.00032876,7]
[331681977,1720633839282,-500.0,0.00032876,7]
[331681978,1720633839292,-500.0,0.00032876,7]
[331681979,1720633839303,-500.0,0.00032876,7]
[331681980,1720633839312,-500.0,0.00032876,7]
[331681981,1720633839323,-500.82595431,0.00032876,3]
[331681982,1720633839333,-500.0,0.00032876,7]
[331681983,1720633839344,-500.0,0.00032876,2]
[331681984,1720633839355,-521.69716309,0.00032876,7]
[331681985,1720633839366,-500.0,0.00032876,2]
[331681986,1720633839377,-588.56,0.00032876,7]
[331681987,1720633839388,-517.34438674,0.00032876,7]
[331681988,1720633839398,-477.16209449,0.00032876,7]
[331681989,1720633839408,-516.38473904,0.00032876,7]
[331681990,1720633839419,-564.74916678,0.00032876,7]
[331681991,1720633839429,-500.0,0.00032876,7]
[331681992,1720633839440,-500.0,0.00032876,7]
[331681993,1720633839450,-500.0,0.00032876,7]
[331681994,1720633839461,-500.0,0.00032876,7]
[331681995,1720633839470,-1924.61,0.00032876,4]
[331681996,1720633839480,-500.0,0.00032876,7]
[331681997,1720633839491,-529.42026115,0.00032876,7]
[331681998,1720633839501,-500.0,0.00032876,7]
[331681999,1720633839512,-500.0,0.00032876,7]
[331682000,1720633839522,-500.0,0.00032876,7]
[331682001,1720633839533,-500.0,0.00032876,7]
[331682002,1720633839543,-500.0,0.00032876,7]
[331682003,1720633839553,-500.0,0.00032876,7]
[331682004,1720633839564,-504.59237661,0.00032876,7]
[331682005,1720633839575,-500.0,0.00032876,7]
[331682006,1720633839586,-562.68953031,0.00032876,7]
[331682007,1720633839596,-525.6161976,0.00032876,7]
[331682008,1720633839606,-500.0,0.00032876,7]
[331682009,1720633839616,-500.0,0.00032876,7]
[331682010,1720633839626,-446.45355739,0.00032876,7]
[331682011,1720633839636,-500.0,0.00032876,7]
[331682012,1720633839647,-500.0,0.00032876,7]
[331682013,1720633839657,-500.0,0.00032876,7]
[331682014,1720633839667,-500.0,0.00032876,7]
[331682015,1720633839677,-500.0,0.00032876,7]
[331682016,1720633839687,-373.74386389,0.00032876,7]
[331682017,1720633839697,-505.02365654,0.00032876,7]
[331682018,1720633839707,-500.0,0.00032876,7]
[331682019,1720633839717,-500.0,0.00032876,7]
[331682021,1720633839727,-500.0,0.00032876,7]
[331682022,1720633839736,-500.0,0.00032876,7]
[331682023,1720633839746,-523.87512682,0.00032876,7]
[331682024,1720633839756,-1226.35,0.00032876,7]
[331682025,1720633839766,-511.40716072,0.00032876,7]
[331682026,1720633839776,-509.66054696,0.00032876,7]
[331682027,1720633839786,-521.66203769,0.00032876,7]
[331682028,1720633839796,-2167.79,0.00032876,7]
[331682030,1720633839805,-500.0,0.00032876,7]
[331682031,1720633839815,-505.26173045,0.00032876,7]
[331682033,1720633839824,-512.70080887,0.00032876,7]
[331682034,1720633839833,-500.0,0.00032876,7]
[331682035,1720633839843,-276.3927466,0.00032876,7]
[331682036,1720633839852,-5532.44,0.00032876,7]
[331682037,1720633839862,-655.65,0.00032876,7]
[331682038,1720633839872,-500.0,0.00032876,7]
[331682039,1720633839881,-500.0,0.00032876,7]
[331682040,1720633839890,-500.0,0.00032876,7]
[331682041,1720633839899,-500.0,0.00032876,7]
[331682042,1720633839908,-500.0,0.00032876,7]
[331682043,1720633839918,-650.4,0.00032876,7]
[331682044,1720633839927,-500.0,0.00032876,7]
[331682045,1720633839937,-500.0,0.00032876,7]
[331682046,1720633839946,-500.0,0.00032876,7]
[331682047,1720633839956,-500.0,0.00032876,2]
[331682048,1720633839967,-514.53,0.00032876,7]
[331682049,1720633840083,-1240.52,0.00032876,7]
[331682050,1720633840093,-500.0,0.00032876,7]
[331682051,1720633840102,-507.3995866,0.00032876,7]
[331682052,1720633840111,-511.18442237,0.00032876,7]
[331682053,1720633840120,-815.68,0.00032876,7]
[331682054,1720633840130,-500.0,0.00032876,7]
[331682055,1720633840140,-500.0,0.00032876,7]
[331682056,1720633840150,-500.0,0.00032876,7]
[331682057,1720633840159,-789.03,0.00032876,7]
[331682058,1720633840169,-500.0,0.00032876,7]
[331682059,1720633840178,-500.0,0.00032876,7]
[331682060,1720633840187,-500.0,0.00032876,7]
[331682061,1720633840196,-500.0,0.00032876,7]
[331682062,1720633840205,-500.0,0.00032876,7]
[331682063,1720633840215,-500.0,0.00032876,7]
[331682064,1720633840224,-433.16515063,0.00032876,7]
[331682065,1720633840233,-973.91,0.00032876,7]
[331682066,1720633840242,-500.0,0.00032876,7]
[331682067,1720633840255,-513.95739066,0.00032876,7]
[331682068,1720633840264,-511.18774902,0.00032876,7]
[331682069,1720633840273,-500.0,0.00032876,7]
[331682070,1720633840282,-500.0,0.00032876,7]
[331682071,1720633840291,-500.0,0.00032876,7]
[331682072,1720633840300,-192.85334231,0.00032876,7]
[331682073,1720633840310,-500.0,0.00032876,7]
[331682074,1720633840319,-500.0,0.00032876,7]
[331682075,1720633840327,-500.0,0.00032876,7]
[331682076,1720633840336,-500.0,0.00032876,7]
[331682077,1720633840345,-509.1633017,0.00032876,7]
[331682078,1720633840355,-500.0,0.00032876,7]
[331682079,1720633840364,-500.0,0.00032876,7]
[331682080,1720633840373,-500.0,0.00032876,7]
[331682081,1720633840383,-500.0,0.00032876,7]
[331682082,1720633840393,-500.0,0.00032876,7]
[331682083,1720633840402,-500.0,0.00032876,7]
[331682084,1720633840411,-500.0,0.00032876,7]
[331682085,1720633840420,-448.45902527,0.00032876,7]
[331682086,1720633840429,-500.0,0.00032876,7]
[331682087,1720633840438,-500.0,0.00032876,7]
[331682088,1720633840447,-317.49296519,0.00032876,7]
[331682089,1720633840456,-186.21164109,0.00032876,7]
[331682090,1720633840465,-527.64794882,0.00032876,7]
[331682091,1720633840475,-513.40325431,0.00032876,7]
[331682092,1720633840484,-500.0,0.00032876,7]
[331682093,1720633840494,-500.0,0.00032876,7]
[331682094,1720633840505,-500.0,0.00032876,7]
[331682095,1720633840514,-1146.61,0.00032876,7]
[331682096,1720633840523,-434.63536106,0.00032876,7]
[331682097,1720633840533,-150.0,0.00032876,120]
[331682098,1720633840544,-500.0,0.00032876,7]
[331682099,1720633840553,-500.0,0.00032876,7]
[331682100,1720633840563,-500.0,0.00032876,7]
[331682101,1720633840572,-500.0,0.00032876,7]
[331682102,1720633840581,-500.0,0.00032876,7]
[331682103,1720633840590,-500.0,0.00032876,7]
[331682104,1720633840599,-500.0,0.00032876,7]
[331682105,1720633840608,-500.0,0.00032876,7]
[331682106,1720633840616,-500.0,0.00032876,7]
[331682107,1720633840625,-500.0,0.00032876,7]
[331682108,1720633840635,-500.0,0.00032876,7]
[331682109,1720633840645,-500.0,0.00032876,7]
[331682110,1720633840654,-500.0,0.00032876,7]
[331682111,1720633840664,-500.0,0.00032876,7]
[331682112,1720633840674,-500.0,0.00032876,7]
[331682113,1720633840683,-622.77832109,0.00032876,7]
[331682114,1720633840692,-500.0,0.00032876,7]
[331682115,1720633840702,-500.0,0.00032876,7]
[331682116,1720633840711,-500.0,0.00032876,7]
[331682117,1720633840720,-500.0,0.00032876,7]
[331682118,1720633840730,-500.0,0.00032876,7]
[331682119,1720633840739,-215.46,0.00032876,7]
[331682120,1720633840748,-4004.03,0.00032876,7]
[331682121,1720633840757,-506.45487658,0.00032876,18]
[331682122,1720633840769,-500.0,0.00032876,7]
[331682123,1720633840778,-500.0,0.00032876,7]
[331682124,1720633840787,-500.0,0.00032876,7]
[331682125,1720633840796,-500.0,0.00032876,7]
[331682126,1720633840805,-500.0,0.00032876,7]
[331682127,1720633840814,-505.76064157,0.00032876,7]
[331682128,1720633840823,-2146.61,0.00032876,7]
[331682129,1720633840833,-500.0,0.00032876,7]
[331682130,1720633840842,-517.43145766,0.00032876,7]
[331682131,1720633840853,-516.79715429,0.00032876,7]
[331682132,1720633840862,-522.65825356,0.00032876,7]
[331682133,1720633840871,-500.0,0.00032876,7]
[331682134,1720633840881,-2637.16,0.00032876,2]
[331682135,1720633840890,-2637.16,0.00032876,2]
[331682136,1720633840899,-2637.16,0.00032876,2]
[331682137,1720633840909,-2637.16,0.00032876,2]
[331682138,1720633840918,-2637.16,0.00032876,2]
[331682139,1720633840927,-2637.16,0.00032876,2]
[331682140,1720633840937,-2637.16,0.00032876,2]
[331682141,1720633840946,-2637.16,0.00032876,2]
[331682142,1720633840956,-2637.16,0.00032876,2]
[331682143,1720633840966,-655.71,0.00032876,7]
[331682144,1720633840975,-2637.16,0.00032876,2]
[331682145,1720633840985,-500.0,0.00032876,7]
[331682146,1720633840994,-2637.16,0.00032876,2]
[331682147,1720633841003,-2637.16,0.00032876,2]
[331682148,1720633841012,-2637.16,0.00032876,2]
[331682149,1720633841022,-2637.16,0.00032876,2]
[331682150,1720633841032,-2637.16,0.00032876,2]
[331682151,1720633841043,-2637.16,0.00032876,2]
[331682152,1720633841052,-2637.16,0.00032876,2]
[331682153,1720633841061,-2637.16,0.00032876,2]
[331682154,1720633841071,-2637.16,0.00032876,2]
[331682155,1720633841080,-500.0,0.00032876,7]
[331682156,1720633841089,-500.0,0.00032876,7]
[331682157,1720633841098,-500.0,0.00032876,7]
[331682158,1720633841107,-500.0,0.00032876,7]
[331682159,1720633841116,-500.0,0.00032876,7]
[331682160,1720633841126,-500.0,0.00032876,7]
[331682161,1720633841135,-500.0,0.00032876,7]
[331682162,1720633841145,-155.42735479,0.00032876,7]
[331682163,1720633841155,-500.0,0.00032876,7]
[331682164,1720633841164,-507.59370746,0.00032876,7]
[331682165,1720633841174,-225.16732668,0.00032876,7]
[331682166,1720633841184,-500.0,0.00032876,7]
[331682167,1720633841193,-500.0,0.00032876,7]
[331682168,1720633841203,-506.28613852,0.00032876,7]
[331682169,1720633841213,-500.0,0.00032876,7]
[331682170,1720633841222,-868.94,0.00032876,7]
[331682171,1720633841232,-500.0,0.00032876,7]
[331682172,1720633841241,-500.0,0.00032876,7]
[331682173,1720633841251,-503.65426862,0.00032876,7]
[331682174,1720633841260,-1045.58,0.00032876,7]
[331682175,1720633841269,-500.0,0.00032876,7]
[331682176,1720633841278,-500.0,0.00032876,7]
[331682177,1720633841287,-500.0,0.00032876,7]
[331682178,1720633841297,-1500.0,0.00032876,7]
[331682179,1720633841306,-531.62223007,0.00032876,7]
[331682180,1720633841315,-507.29056014,0.00032876,7]
[331682181,1720633841324,-222.99106709,0.00032876,7]
[331682182,1720633841333,-562.45524875,0.00032876,7]
[331682183,1720633841342,-500.0,0.00032876,7]
[331682184,1720633841351,-500.0,0.00032876,7]
[331682185,1720633841360,-916.0,0.00032876,7]
[331682186,1720633841369,-500.0,0.00032876,7]
[331682187,1720633841378,-502.39172908,0.00032876,7]
[331682188,1720633841387,-1573.3,0.00032876,7]
[331682189,1720633841398,-500.0,0.00032876,7]
[331682190,1720633841407,-500.0,0.00032876,7]
[331682191,1720633841415,-500.0,0.00032876,7]
[331682192,1720633841428,-500.0,0.00032876,7]
[331682193,1720633841437,-507.95538167,0.00032876,7]
[331682194,1720633841445,-1940.97,0.00032876,7]
[331682195,1720633841454,-190.54055537,0.00032876,7]
[331682196,1720633841462,-779.68,0.00032876,7]
[331682197,1720633841471,-911.3,0.00032876,7]
[331682198,1720633841480,-3472.78,0.00032876,7]
[331682199,1720633841489,-390.66100992,0.00032876,7]
[331682200,1720633841498,-636.83771669,0.00032876,7]
[331682201,1720633841507,-470.44082281,0.00032876,7]
[331682202,1720633841515,-500.0,0.00032876,7]
[331682203,1720633841525,-789.14,0.00032876,7]
[331682204,1720633841533,-500.0,0.00032876,7]
[331682205,1720633841542,-602.28,0.00032876,7]
[331682206,1720633841552,-500.0,0.00032876,7]
[331682207,1720633841561,-1234.5,0.00032876,7]
[331682209,1720633841570,-641.75,0.00032876,7]
[331682210,1720633841580,-177.68416937,0.00032876,7]
[331682211,1720633841590,-500.0,0.00032876,7]